[Event "*** Titled Tuesday Blitz"]
[Site "Chess.com"]
[Date "2020.12.01"]
[Round "4"]
[White "zurzan"]
[Black "Pogosian_Manvel"]
[Result "0-1"]
[WhiteElo "2080"]
[BlackElo "2377"]
[TimeControl "180+1"]
[EndTime "10:39:44 PST"]
[Termination "Pogosian_Manvel won on time"]

1. f4 {[%clk 0:03:00.9]} 1... e5 {[%clk 0:02:59.4]} 2. fxe5 {[%clk 0:03:00.3]}
2... d6 {[%clk 0:02:59.7]} 3. exd6 {[%clk 0:03:01.2]} 3... Bxd6 {[%clk
0:02:59.4]} 4. Nf3 {[%clk 0:03:02.1]} 4... g5 {[%clk 0:02:58.9]} 5. g3 {[%clk
0:03:02.5]} 5... g4 {[%clk 0:02:59.1]} 6. Nh4 {[%clk 0:03:01.4]} 6... Ne7 {[%clk
0:02:59.3]} 7. d4 {[%clk 0:03:00.3]} 7... Ng6 {[%clk 0:02:56.6]} 8. Ng2 {[%clk
0:03:00.3]} 8... h5 {[%clk 0:02:53.2]} 9. Qd3 {[%clk 0:02:59.7]} 9... h4 {[%clk
0:02:50.7]} 10. Nf4 {[%clk 0:02:59.8]} 10... Nxf4 {[%clk 0:02:23.3]} 11. Bxf4
{[%clk 0:02:59.1]} 11... hxg3 {[%clk 0:02:05.8]} 12. Qxg3 {[%clk 0:02:46.3]}
12... Nc6 {[%clk 0:01:58.2]} 13. Bxd6 {[%clk 0:02:43.1]} 13... cxd6 {[%clk
0:01:57.7]} 14. c3 {[%clk 0:02:42.6]} 14... Be6 {[%clk 0:01:51.5]} 15. Nd2
{[%clk 0:02:40.6]} 15... d5 {[%clk 0:01:51.3]} 16. O-O-O {[%clk 0:02:35.8]}
16... Qg5 {[%clk 0:01:46.8]} 17. e3 {[%clk 0:02:29.7]} 17... O-O-O {[%clk
0:01:45.8]} 18. Qf4 {[%clk 0:02:16.4]} 18... Qxf4 {[%clk 0:01:41.6]} 19. exf4
{[%clk 0:02:16.1]} 19... Rh4 {[%clk 0:01:39.7]} 20. Bd3 {[%clk 0:02:10.1]} 20...
Rdh8 {[%clk 0:01:39.5]} 21. f5 {[%clk 0:02:09.4]} 21... Bd7 {[%clk 0:01:38]} 22.
Nf1 {[%clk 0:02:03.7]} 22... Ne7 {[%clk 0:01:35.8]} 23. f6 {[%clk 0:02:00.4]}
23... Nf5 {[%clk 0:01:32.7]} 24. Bxf5 {[%clk 0:01:56.1]} 24... Bxf5 {[%clk
0:01:32.4]} 25. Ne3 {[%clk 0:01:55.5]} 25... Be4 {[%clk 0:01:28.2]} 26. Rhg1
{[%clk 0:01:55.4]} 26... Rxh2 {[%clk 0:01:26.1]} 27. Rd2 {[%clk 0:01:39.3]}
27... Rh1 {[%clk 0:01:20.1]} 28. Rdd1 {[%clk 0:01:32.8]} 28... Rxg1 {[%clk
0:01:05.9]} 29. Rxg1 {[%clk 0:01:32.7]} 29... Bf3 {[%clk 0:01:05.5]} 30. Nxg4
{[%clk 0:01:31.1]} 30... Rg8 {[%clk 0:01:05.3]} 31. Re1 {[%clk 0:01:14.1]} 31...
Bxg4 {[%clk 0:01:02.5]} 32. Re7 {[%clk 0:01:13.7]} 32... Be6 {[%clk 0:01:02.1]}
33. Kd2 {[%clk 0:01:11.9]} 33... Rg6 {[%clk 0:01:02.4]} 34. c4 {[%clk
0:01:08.2]} 34... dxc4 {[%clk 0:00:59.8]} 35. Kc3 {[%clk 0:01:07.8]} 35... Rxf6
{[%clk 0:00:59.8]} 36. Kb4 {[%clk 0:01:07.3]} 36... Rf5 {[%clk 0:00:56.7]} 37.
Re8+ {[%clk 0:01:01.2]} 37... Kc7 {[%clk 0:00:56.3]} 38. Ra8 {[%clk 0:00:59]}
38... Kb6 {[%clk 0:00:53.5]} 39. Rd8 {[%clk 0:00:56.7]} 39... a5+ {[%clk
0:00:50.8]} 40. Kc3 {[%clk 0:00:55.7]} 40... Rf3+ {[%clk 0:00:50.5]} 41. Kd2
{[%clk 0:00:54]} 41... Rf2+ {[%clk 0:00:45.4]} 42. Kc3 {[%clk 0:00:54.1]} 42...
Kc7 {[%clk 0:00:42.6]} 43. Ra8 {[%clk 0:00:49.5]} 43... b6 {[%clk 0:00:40.6]}
44. Ra7+ {[%clk 0:00:49.1]} 44... Kc6 {[%clk 0:00:40.2]} 45. a3 {[%clk
0:00:47.7]} 45... Kb5 {[%clk 0:00:36]} 46. Rc7 {[%clk 0:00:45.2]} 46... Rf3+
{[%clk 0:00:31.1]} 47. Kd2 {[%clk 0:00:44.4]} 47... Rd3+ {[%clk 0:00:30.7]} 48.
Kc2 {[%clk 0:00:43.6]} 48... Rxd4 {[%clk 0:00:30.4]} 49. Kc3 {[%clk 0:00:40.5]}
49... Rd3+ {[%clk 0:00:29.8]} 50. Kc2 {[%clk 0:00:40.5]} 50... f5 {[%clk
0:00:27.3]} 51. Re7 {[%clk 0:00:38.9]} 51... Re3 {[%clk 0:00:25.9]} 52. Kd2
{[%clk 0:00:36.5]} 52... f4 {[%clk 0:00:26.1]} 53. Re8 {[%clk 0:00:27.4]} 53...
Ka4 {[%clk 0:00:23.2]} 54. Rf8 {[%clk 0:00:27.2]} 54... Re4 {[%clk 0:00:22.5]}
55. Rb8 {[%clk 0:00:24]} 55... b5 {[%clk 0:00:21.4]} 56. Rf8 {[%clk 0:00:17.6]}
56... Kb3 {[%clk 0:00:20.2]} 57. Rb8 {[%clk 0:00:14.9]} 57... b4 {[%clk
0:00:20.5]} 58. axb4 {[%clk 0:00:14.3]} 58... axb4 {[%clk 0:00:21]} 59. Kc1
{[%clk 0:00:12.2]} 59... f3 {[%clk 0:00:20.8]} 60. Rf8 {[%clk 0:00:11.6]} 60...
Bg4 {[%clk 0:00:20.7]} 61. Rf6 {[%clk 0:00:08.5]} 61... Re2 {[%clk 0:00:20.7]}
62. Kd1 {[%clk 0:00:06.8]} 62... f2 {[%clk 0:00:20.3]} 63. Rxf2 {[%clk
0:00:02.8]} 63... Rxf2+ {[%clk 0:00:19.6]} 64. Ke1 {[%clk 0:00:03.3]} 64... Rxb2
{[%clk 0:00:20.3]} 65. Kf1 {[%clk 0:00:02.8]} 65... Re2 {[%clk 0:00:20.1]} 66.
Kg1 {[%clk 0:00:02.4]} 66... c3 {[%clk 0:00:20.8]} 0-1

[Event "*** Titled Tuesday Blitz"]
[Site "Chess.com"]
[Date "2020.12.01"]
[Round "4"]
[White "Grammnik"]
[Black "Chuchofrio1"]
[Result "1-0"]
[WhiteElo "2331"]
[BlackElo "2467"]
[TimeControl "180+1"]
[EndTime "10:39:46 PST"]
[Termination "Grammnik won by checkmate"]

1. d4 {[%clk 0:02:55.4]} 1... f5 {[%clk 0:02:59.3]} 2. Nf3 {[%clk 0:02:54.7]}
2... Nf6 {[%clk 0:02:58]} 3. c4 {[%clk 0:02:54.3]} 3... d6 {[%clk 0:02:57.5]} 4.
Nc3 {[%clk 0:02:54.1]} 4... g6 {[%clk 0:02:57.4]} 5. g3 {[%clk 0:02:52.4]} 5...
Bg7 {[%clk 0:02:57.8]} 6. Bg2 {[%clk 0:02:52.9]} 6... O-O {[%clk 0:02:58.2]} 7.
O-O {[%clk 0:02:53.4]} 7... Nc6 {[%clk 0:02:58.6]} 8. d5 {[%clk 0:02:52.4]} 8...
Ne5 {[%clk 0:02:58]} 9. Nd4 {[%clk 0:02:52]} 9... Nxc4 {[%clk 0:02:57.3]} 10. e4
{[%clk 0:02:50]} 10... Nxe4 {[%clk 0:02:55.3]} 11. Nxe4 {[%clk 0:02:49.8]} 11...
fxe4 {[%clk 0:02:56.2]} 12. Bxe4 {[%clk 0:02:49.6]} 12... Bh3 {[%clk 0:02:51.4]}
13. Re1 {[%clk 0:02:45.6]} 13... e5 {[%clk 0:02:46]} 14. Ne6 {[%clk 0:01:39.9]}
14... Bxe6 {[%clk 0:02:33.2]} 15. dxe6 {[%clk 0:01:39.7]} 15... c6 {[%clk
0:02:34.1]} 16. b3 {[%clk 0:01:34.8]} 16... Nb6 {[%clk 0:02:31.1]} 17. Ba3
{[%clk 0:01:33.9]} 17... Nc8 {[%clk 0:02:11.8]} 18. Bg2 {[%clk 0:01:31.9]} 18...
Rf6 {[%clk 0:02:09.3]} 19. Bh3 {[%clk 0:01:30.9]} 19... Qb6 {[%clk 0:02:00.5]}
20. Re2 {[%clk 0:01:24.3]} 20... Qc7 {[%clk 0:01:52.1]} 21. Qe1 {[%clk
0:01:16.2]} 21... a5 {[%clk 0:01:49.7]} 22. Rd1 {[%clk 0:01:13.6]} 22... b5
{[%clk 0:01:48.3]} 23. f4 {[%clk 0:00:59.2]} 23... b4 {[%clk 0:01:32.7]} 24.
fxe5 {[%clk 0:00:56.3]} 24... dxe5 {[%clk 0:01:32.3]} 25. Bb2 {[%clk 0:00:52.8]}
25... Rf8 {[%clk 0:00:57.3]} 26. Rd7 {[%clk 0:00:51.3]} 26... Qb6+ {[%clk
0:00:55.7]} 27. Kh1 {[%clk 0:00:51.1]} 27... Ra7 {[%clk 0:00:51.7]} 28. Bxe5
{[%clk 0:00:23.8]} 28... Bxe5 {[%clk 0:00:42.7]} 29. Rxe5 {[%clk 0:00:23.5]}
29... Ne7 {[%clk 0:00:43.3]} 30. Qe3 {[%clk 0:00:18.8]} 30... Qxe3 {[%clk
0:00:40.6]} 31. Rxe3 {[%clk 0:00:18.3]} 31... Raa8 {[%clk 0:00:04.6]} 32. Rxe7
{[%clk 0:00:17.5]} 32... Rae8 {[%clk 0:00:05.5]} 33. Rxe8 {[%clk 0:00:17.2]}
33... Rxe8 {[%clk 0:00:06.4]} 34. Bg2 {[%clk 0:00:15.3]} 34... c5 {[%clk
0:00:05.8]} 35. e7 {[%clk 0:00:13.4]} 35... Kf7 {[%clk 0:00:04.6]} 36. Bd5+
{[%clk 0:00:13.4]} 36... Kf6 {[%clk 0:00:05]} 37. h4 {[%clk 0:00:13]} 37... Rxe7
{[%clk 0:00:04.6]} 38. Rxe7 {[%clk 0:00:13]} 38... Kxe7 {[%clk 0:00:05.5]} 39.
Kg2 {[%clk 0:00:13.6]} 39... Kd6 {[%clk 0:00:06]} 40. Bc4 {[%clk 0:00:13.3]}
40... Ke5 {[%clk 0:00:06.4]} 41. Kf3 {[%clk 0:00:13.6]} 41... Kd4 {[%clk
0:00:07.1]} 42. g4 {[%clk 0:00:09]} 42... a4 {[%clk 0:00:06.2]} 43. Bg8 {[%clk
0:00:07.7]} 43... a3 {[%clk 0:00:05.7]} 44. g5 {[%clk 0:00:07.5]} 44... Kc3
{[%clk 0:00:06.6]} 45. Bxh7 {[%clk 0:00:07.7]} 45... Kb2 {[%clk 0:00:07.5]} 46.
h5 {[%clk 0:00:07.4]} 46... Kxa2 {[%clk 0:00:08.4]} 47. hxg6 {[%clk 0:00:06.9]}
47... Kb2 {[%clk 0:00:07.8]} 48. g7 {[%clk 0:00:07.1]} 48... a2 {[%clk
0:00:08.7]} 49. g8=Q {[%clk 0:00:07.2]} 49... a1=Q {[%clk 0:00:09.2]} 50. Qg7+
{[%clk 0:00:07.1]} 50... Ka2 {[%clk 0:00:09.3]} 51. Qxa1+ {[%clk 0:00:06.8]}
51... Kxa1 {[%clk 0:00:10.2]} 52. Bg8 {[%clk 0:00:06.8]} 52... Kb2 {[%clk
0:00:10.4]} 53. g6 {[%clk 0:00:06.5]} 53... Kc3 {[%clk 0:00:09.7]} 54. g7 {[%clk
0:00:06.6]} 54... Kb2 {[%clk 0:00:07.6]} 55. Bc4 {[%clk 0:00:05.8]} 55... Ka3
{[%clk 0:00:07.8]} 56. g8=Q {[%clk 0:00:06.2]} 56... Kb2 {[%clk 0:00:08.2]} 57.
Qg7+ {[%clk 0:00:06.3]} 57... Ka2 {[%clk 0:00:08.6]} 58. Ke3 {[%clk 0:00:05.6]}
58... Kb1 {[%clk 0:00:08.3]} 59. Kd3 {[%clk 0:00:04.9]} 59... Ka2 {[%clk
0:00:08.7]} 60. Qf8 {[%clk 0:00:04.9]} 60... Ka3 {[%clk 0:00:08.5]} 61. Qxc5
{[%clk 0:00:05.4]} 61... Kb2 {[%clk 0:00:08.7]} 62. Qxb4 {[%clk 0:00:05.6]}
62... Ka1 {[%clk 0:00:09.1]} 63. Qd2 {[%clk 0:00:05.1]} 63... Kb1 {[%clk
0:00:09]} 64. Kc3 {[%clk 0:00:05.2]} 64... Ka1 {[%clk 0:00:09.4]} 65. Qb2#
{[%clk 0:00:05.2]} 1-0

[Event "*** Titled Tuesday Blitz"]
[Site "Chess.com"]
[Date "2020.12.01"]
[Round "4"]
[White "GianmarcoVaR"]
[Black "MF1966Idrisov"]
[Result "1-0"]
[WhiteElo "2654"]
[BlackElo "2388"]
[TimeControl "180+1"]
[EndTime "10:39:50 PST"]
[Termination "GianmarcoVaR won on time"]

1. d4 {[%clk 0:02:59.9]} 1... d6 {[%clk 0:02:58.5]} 2. g3 {[%clk 0:02:58.9]}
2... f5 {[%clk 0:02:58.5]} 3. Bg2 {[%clk 0:02:59.3]} 3... Nf6 {[%clk 0:02:58.9]}
4. Nd2 {[%clk 0:02:58.3]} 4... e6 {[%clk 0:02:59.3]} 5. e4 {[%clk 0:02:58.5]}
5... fxe4 {[%clk 0:02:58.7]} 6. Nxe4 {[%clk 0:02:59.1]} 6... Be7 {[%clk
0:02:59.1]} 7. Nxf6+ {[%clk 0:02:52.9]} 7... Bxf6 {[%clk 0:02:58.6]} 8. Nf3
{[%clk 0:02:53.8]} 8... O-O {[%clk 0:02:57.8]} 9. O-O {[%clk 0:02:54.1]} 9...
Nc6 {[%clk 0:02:58.1]} 10. Bf4 {[%clk 0:02:45.4]} 10... e5 {[%clk 0:02:53]} 11.
dxe5 {[%clk 0:02:45.7]} 11... Bxe5 {[%clk 0:02:52.2]} 12. Nxe5 {[%clk
0:02:44.9]} 12... Nxe5 {[%clk 0:02:51.6]} 13. Bxe5 {[%clk 0:02:37.8]} 13... dxe5
{[%clk 0:02:49.1]} 14. Qxd8 {[%clk 0:02:38.7]} 14... Rxd8 {[%clk 0:02:48.2]} 15.
Rfe1 {[%clk 0:02:27.9]} 15... Re8 {[%clk 0:02:38.4]} 16. Re3 {[%clk 0:02:24.5]}
16... c6 {[%clk 0:02:30]} 17. Rae1 {[%clk 0:02:24]} 17... Bf5 {[%clk 0:02:29.6]}
18. Rxe5 {[%clk 0:02:18.8]} 18... Rxe5 {[%clk 0:02:25.8]} 19. Rxe5 {[%clk
0:02:19.4]} 19... Bxc2 {[%clk 0:02:25.8]} 20. Re7 {[%clk 0:02:19.2]} 20... Rb8
{[%clk 0:02:24]} 21. h4 {[%clk 0:02:11.7]} 21... Bd3 {[%clk 0:02:06.7]} 22. a3
{[%clk 0:02:02.2]} 22... Ba6 {[%clk 0:02:00.9]} 23. Rc7 {[%clk 0:02:02]} 23...
Rd8 {[%clk 0:01:55.7]} 24. Be4 {[%clk 0:01:55.6]} 24... Rd2 {[%clk 0:01:49.8]}
25. b4 {[%clk 0:01:44.9]} 25... g6 {[%clk 0:01:49.5]} 26. h5 {[%clk 0:01:39.4]}
26... Rd4 {[%clk 0:01:28.6]} 27. f3 {[%clk 0:01:29.4]} 27... Bd3 {[%clk
0:01:27.8]} 28. h6 {[%clk 0:01:08.7]} 28... Bxe4 {[%clk 0:01:23.1]} 29. fxe4
{[%clk 0:01:09.6]} 29... b5 {[%clk 0:00:34.4]} 30. Rg7+ {[%clk 0:01:08.8]} 30...
Kf8 {[%clk 0:00:28.8]} 31. Rxh7 {[%clk 0:01:09.1]} 31... Rxe4 {[%clk 0:00:28.8]}
32. Rxa7 {[%clk 0:01:09.3]} 32... Kg8 {[%clk 0:00:22.6]} 33. Rg7+ {[%clk
0:01:08.9]} 33... Kh8 {[%clk 0:00:21.5]} 34. Rxg6 {[%clk 0:01:09.4]} 34... Rc4
{[%clk 0:00:21.7]} 35. Rg5 {[%clk 0:00:19.5]} 35... Rc3 {[%clk 0:00:20.4]} 36.
Kg2 {[%clk 0:00:15.4]} 36... Rxa3 {[%clk 0:00:20]} 37. Rc5 {[%clk 0:00:10.3]}
37... Rb3 {[%clk 0:00:18.3]} 38. Rxc6 {[%clk 0:00:08.9]} 38... Rxb4 {[%clk
0:00:18.5]} 39. Kh3 {[%clk 0:00:08.8]} 39... Kh7 {[%clk 0:00:16.7]} 40. g4
{[%clk 0:00:07.8]} 40... Rd4 {[%clk 0:00:15.2]} 41. Kh4 {[%clk 0:00:05.4]} 41...
b4 {[%clk 0:00:14.6]} 42. Kh5 {[%clk 0:00:04.4]} 42... Rd1 {[%clk 0:00:13.2]}
43. Rc7+ {[%clk 0:00:03.7]} 43... Kg8 {[%clk 0:00:13.4]} 44. Rb7 {[%clk
0:00:04.3]} 44... Rd5+ {[%clk 0:00:10.6]} 45. g5 {[%clk 0:00:04.7]} 45... Rd4
{[%clk 0:00:09.7]} 46. Kg6 {[%clk 0:00:04.4]} 46... Rd6+ {[%clk 0:00:09.5]} 47.
Kf5 {[%clk 0:00:04.8]} 47... Rd4 {[%clk 0:00:09.7]} 48. Rb8+ {[%clk 0:00:04.3]}
48... Kh7 {[%clk 0:00:09]} 49. Rb7+ {[%clk 0:00:04.7]} 49... Kg8 {[%clk
0:00:08.9]} 50. g6 {[%clk 0:00:05.2]} 50... Rd5+ {[%clk 0:00:03.1]} 51. Ke6
{[%clk 0:00:05.2]} 51... Rd8 {[%clk 0:00:03.1]} 52. Ke7 {[%clk 0:00:05.4]} 52...
Ra8 {[%clk 0:00:02.4]} 53. Rxb4 {[%clk 0:00:04.1]} 53... Ra7+ {[%clk 0:00:02.5]}
54. Kf6 {[%clk 0:00:04.2]} 54... Ra6+ {[%clk 0:00:03]} 55. Kg5 {[%clk
0:00:04.6]} 55... Ra5+ {[%clk 0:00:03.9]} 56. Kg4 {[%clk 0:00:04.9]} 56... Ra8
{[%clk 0:00:03.7]} 57. Rf4 {[%clk 0:00:05]} 57... Rb8 {[%clk 0:00:03.5]} 58. Kg5
{[%clk 0:00:05.4]} 58... Rc8 {[%clk 0:00:03.3]} 59. Rf5 {[%clk 0:00:05.9]} 59...
Rb8 {[%clk 0:00:03.3]} 60. Re5 {[%clk 0:00:06.3]} 60... Rc8 {[%clk 0:00:03.5]}
61. Kf6 {[%clk 0:00:05.9]} 61... Rf8+ {[%clk 0:00:03.3]} 62. Ke7 {[%clk
0:00:05.7]} 62... Ra8 {[%clk 0:00:02.5]} 63. Rd5 {[%clk 0:00:06]} 1-0

[Event "*** Titled Tuesday Blitz"]
[Site "Chess.com"]
[Date "2020.12.01"]
[Round "4"]
[White "banane_verte"]
[Black "Nikolakis2014"]
[Result "0-1"]
[WhiteElo "2488"]
[BlackElo "2713"]
[TimeControl "180+1"]
[EndTime "10:39:53 PST"]
[Termination "Nikolakis2014 won by resignation"]

1. e4 {[%clk 0:03:00.9]} 1... c6 {[%clk 0:02:59.2]} 2. d4 {[%clk 0:03:00.9]}
2... d5 {[%clk 0:02:59.1]} 3. Nc3 {[%clk 0:03:01.5]} 3... dxe4 {[%clk
0:02:58.7]} 4. Nxe4 {[%clk 0:03:02.4]} 4... Nf6 {[%clk 0:02:58.7]} 5. Nxf6+
{[%clk 0:03:02.4]} 5... exf6 {[%clk 0:02:59]} 6. c3 {[%clk 0:03:02.9]} 6... Bd6
{[%clk 0:02:58.9]} 7. Bd3 {[%clk 0:03:03.4]} 7... O-O {[%clk 0:02:59]} 8. Ne2
{[%clk 0:03:04]} 8... Re8 {[%clk 0:02:58.8]} 9. Qc2 {[%clk 0:03:03.6]} 9... h5
{[%clk 0:02:58.9]} 10. O-O {[%clk 0:03:02.7]} 10... h4 {[%clk 0:02:59]} 11. h3
{[%clk 0:02:58.7]} 11... Nd7 {[%clk 0:02:58.5]} 12. Be3 {[%clk 0:02:52]} 12...
Nf8 {[%clk 0:02:54.8]} 13. c4 {[%clk 0:02:48.7]} 13... Bc7 {[%clk 0:02:54.1]}
14. Rae1 {[%clk 0:01:55.2]} 14... Be6 {[%clk 0:02:31]} 15. b3 {[%clk 0:01:52]}
15... Qd7 {[%clk 0:02:28]} 16. Nf4 {[%clk 0:01:30.2]} 16... Bxf4 {[%clk
0:02:26.7]} 17. Bxf4 {[%clk 0:01:31.1]} 17... Qxd4 {[%clk 0:02:21.3]} 18. Be3
{[%clk 0:01:28.1]} 18... Qd7 {[%clk 0:02:19.4]} 19. Rd1 {[%clk 0:01:26.5]} 19...
Qc7 {[%clk 0:02:17.3]} 20. Rfe1 {[%clk 0:01:20.9]} 20... Rad8 {[%clk 0:02:11.2]}
21. Qc3 {[%clk 0:01:11.7]} 21... Ng6 {[%clk 0:02:00]} 22. Qb4 {[%clk 0:01:04.4]}
22... Ne5 {[%clk 0:01:54.7]} 23. Be2 {[%clk 0:01:00.4]} 23... b6 {[%clk
0:01:53.2]} 24. Qc3 {[%clk 0:00:54.2]} 24... c5 {[%clk 0:01:50.5]} 25. Qc2
{[%clk 0:00:49.3]} 25... g6 {[%clk 0:01:35]} 26. Qe4 {[%clk 0:00:48.8]} 26...
Kg7 {[%clk 0:01:19.5]} 27. Qxh4 {[%clk 0:00:45.8]} 27... Rh8 {[%clk 0:01:16.1]}
28. Qg3 {[%clk 0:00:45.9]} 28... Rxd1 {[%clk 0:01:11.5]} 29. Rxd1 {[%clk
0:00:46.8]} 29... Qe7 {[%clk 0:01:10.7]} 30. Bf4 {[%clk 0:00:45.3]} 30... Nc6
{[%clk 0:01:07.7]} 31. Bd6 {[%clk 0:00:41.5]} 31... Qe8 {[%clk 0:01:07.9]} 32.
Bf4 {[%clk 0:00:27.3]} 32... Nd4 {[%clk 0:01:07.5]} 33. Bf1 {[%clk 0:00:26.9]}
33... Bf5 {[%clk 0:01:05.4]} 34. Be3 {[%clk 0:00:26]} 34... Qe5 {[%clk
0:00:59.6]} 35. Bxd4 {[%clk 0:00:23.1]} 35... cxd4 {[%clk 0:00:59.2]} 36. Bd3
{[%clk 0:00:17.1]} 36... Bxd3 {[%clk 0:00:53.3]} 37. Rxd3 {[%clk 0:00:14]} 37...
Re8 {[%clk 0:00:52.3]} 38. Kh2 {[%clk 0:00:12.9]} 38... Rd8 {[%clk 0:00:44.9]}
39. f4 {[%clk 0:00:11.3]} 39... Qe4 {[%clk 0:00:44.8]} 40. Qf3 {[%clk
0:00:10.4]} 40... f5 {[%clk 0:00:45]} 41. Kg3 {[%clk 0:00:09.7]} 41... Rd6
{[%clk 0:00:41.6]} 42. Kf2 {[%clk 0:00:09.8]} 42... Rd7 {[%clk 0:00:35.7]} 43.
Kg1 {[%clk 0:00:09.1]} 43... Qe1+ {[%clk 0:00:34.3]} 44. Kh2 {[%clk 0:00:09.5]}
44... Qe4 {[%clk 0:00:34.4]} 45. Kg1 {[%clk 0:00:09.3]} 45... a5 {[%clk
0:00:34.4]} 46. Kh2 {[%clk 0:00:09.5]} 46... Qe7 {[%clk 0:00:29.5]} 47. g3
{[%clk 0:00:08.8]} 47... Qe4 {[%clk 0:00:28.9]} 48. Qd1 {[%clk 0:00:07.6]} 48...
f6 {[%clk 0:00:25.8]} 49. Qd2 {[%clk 0:00:07.6]} 49... Kf7 {[%clk 0:00:25.1]}
50. Kg1 {[%clk 0:00:07.7]} 50... Rd6 {[%clk 0:00:23.3]} 51. Kh2 {[%clk
0:00:06.4]} 51... Kg7 {[%clk 0:00:22.1]} 52. Kg1 {[%clk 0:00:06.7]} 52... Kh6
{[%clk 0:00:22.2]} 53. Kh2 {[%clk 0:00:06.9]} 53... g5 {[%clk 0:00:21.6]} 54.
fxg5+ {[%clk 0:00:06.3]} 54... fxg5 {[%clk 0:00:21.1]} 55. h4 {[%clk 0:00:06.9]}
55... f4 {[%clk 0:00:20.9]} 56. hxg5+ {[%clk 0:00:06.8]} 56... Kxg5 {[%clk
0:00:21.2]} 57. Qxf4+ {[%clk 0:00:07.1]} 57... Qxf4 {[%clk 0:00:21.5]} 58. gxf4+
{[%clk 0:00:08]} 58... Kxf4 {[%clk 0:00:22]} 59. Kg2 {[%clk 0:00:08]} 59... Ke4
{[%clk 0:00:22.6]} 60. Rd1 {[%clk 0:00:07.6]} 60... d3 {[%clk 0:00:22.9]} 61.
Kf2 {[%clk 0:00:07.8]} 61... Rf6+ {[%clk 0:00:23.1]} 62. Kg2 {[%clk 0:00:02.9]}
62... Ke3 {[%clk 0:00:23]} 63. Re1+ {[%clk 0:00:02.7]} 63... Kd4 {[%clk
0:00:22.7]} 64. Re8 {[%clk 0:00:02.7]} 64... d2 {[%clk 0:00:22.6]} 65. Rd8+
{[%clk 0:00:02.5]} 65... Kc3 {[%clk 0:00:22.7]} 66. Kg1 {[%clk 0:00:01.2]} 66...
Kc2 {[%clk 0:00:22.5]} 67. a3 {[%clk 0:00:01.4]} 67... d1=Q+ {[%clk 0:00:21.5]}
68. Rxd1 {[%clk 0:00:02.3]} 68... Kxd1 {[%clk 0:00:21.7]} 69. b4 {[%clk
0:00:03.2]} 69... axb4 {[%clk 0:00:21.8]} 70. axb4 {[%clk 0:00:04.1]} 70... Kc2
{[%clk 0:00:22.1]} 71. c5 {[%clk 0:00:05]} 71... bxc5 {[%clk 0:00:22.4]} 72.
bxc5 {[%clk 0:00:05.9]} 72... Kc3 {[%clk 0:00:22.6]} 0-1